Cogmind - Beta 13 @@@ ROGUE MODE // 2024.04.30 @ 19:04:31 Player: satan5 Result: Destroyed by Y-45 Defender with Heavy Assault Rifle Performance ------------- Evolutions (0) 0 Regions Visited (3) 600 Robots Destroyed (31) 155 Value Destroyed (767) 767 Prototype IDs (7) 140 Alien Tech Used (0) 0 Bonus (0) 0 TOTAL SCORE: 1662 Bonus ------- None Cogmind --------- Core Integrity 0/250 Matter 216/300 Energy 250/250 System Corruption 0% Temperature Cool (18) Movement Treading (160) Location -9/Recycling Parts ------- > --- POWER (1+1) ------ Ion Engine > --- PROPULSION (2+1) - Spiked Treads Spiked Treads > --- UTILITY (2+1) ---- Medium Storage Unit Subdweller Optics (+) Rainbow Chip > --- WEAPON (2) ------- Subdweller Machine Gun Subdweller Machine Gun > --- INVENTORY (10) --- Subdweller Power Source Subdweller Optics Subdweller Beam Cannon Subdweller Beam Cannon Subdweller Machine Gun Battle Cannon Battle Cannon Mining Laser Peak State ------------ > --- POWER ------------ Ion Engine > --- PROPULSION ------- Spiked Treads Spiked Treads > --- UTILITY ---------- Medium Storage Unit Subdweller Optics Rainbow Chip > --- WEAPON ----------- Battle Cannon Battle Cannon > --- INVENTORY -------- Subdweller Power Source Large Storage Unit Subdweller Beam Cannon Assault Rifle Assault Rifle Subdweller Machine Gun Subdweller Machine Gun Subdweller Machine Gun Mining Laser [Rating: 26] Favorites ----------- Power Ion Engine Engine Ion Engine Propulsion Aluminum Leg Treads Spiked Treads Leg Aluminum Leg Utility Medium Storage Unit Device Subdweller Optics Storage Medium Storage Unit Processor Rainbow Chip Weapon Subdweller Machine Gun Energy Gun Medium Laser Ballistic Gun Subdweller Machine Gun Ballistic Cannon Battle Cannon Launcher Grenade Launcher Special Weapon Mining Laser Build | -11 -10 -10 -9 ------- Run | Yrd Mat Sub Rec Slots Evolved . | . . . . Power . | . . . . Propulsion . | . . . . Utility . | . . . . Weapon . | . . . . Parts Attached 37 | 6 9 22 . Power 3 | 1 1 1 . Engine 3 | 1 1 1 . Core . | . . . . Reactor . | . . . . Propulsion 6 | 2 . 4 . Treads 2 | . . 2 . Leg 4 | 2 . 2 . Wheel . | . . . . Hover . | . . . . Flight . | . . . . Utility 5 | 1 2 2 . Device 2 | . 1 1 . Storage 2 | 1 1 . . Processor 1 | . . 1 . Hackware . | . . . . Protection . | . . . . Artifact . | . . . . Weapon 23 | 2 6 15 . Energy Gun 2 | 1 1 . . Energy Cannon . | . . . . Ballistic Gun 10 | 1 1 8 . Ballistic Cannon 2 | . . 2 . Launcher 5 | . 2 3 . Special Weapon 4 | . 2 2 . Impact Weapon . | . . . . Slashing Weapon . | . . . . Piercing Weapon . | . . . . Special Melee Weapon . | . . . . Unidentified Prototypes 1 | . . 1 . Parts Lost 7 | . . 7 . Power 1 | . . 1 . Propulsion 2 | . . 2 . Utility 1 | . . 1 . Weapon 3 | . . 3 . Highest Loss Streak 5 | . . 5 . To Critical Strikes . | . . . . Average Slot Usage (%) 79 | . 91 74 80 Engine 10 | . 14 9 10 Treads 7 | . . 10 20 Leg 13 | . 28 7 . Device 5 | . 6 4 10 Storage 10 | . 14 9 10 Processor 6 | . . 9 10 Energy Gun 5 | . 14 1 . Ballistic Gun 10 | . 6 11 20 Ballistic Cannon 3 | . . 5 . Launcher 4 | . 3 4 . Special Weapon 1 | . 2 . . Naked Turns . | . . . . Heaviest Build 26 | 11 21 26 25 Greatest Support 40 | 20 20 40 40 Greatest Overweight (x) 4 | 1 1 4 . Average Overweight (x) . | . . . . Largest Inventory Capacity 10 | 8 10 10 10 Average Capacity 9 | 6 9 10 10 Most Carried 10 | 5 10 10 10 Average Carried 9 | 3 9 9 9 Final Capacity 10 | 8 10 10 10 Final Carried 10 | 4 10 10 8 Class Distribution -------------------- 32% | Mutant 25% | Scavenger-Gunner 18% | Scavenger-Mutant 18% | Derelict-Mutant 5% | Gunner Dominant Class ---------------- Mutant | -10/Materials Scavenger-Gunner | -10/Subcaves Scavenger-Mutant | -9/Recycling Resources | -11 -10 -10 -9 ----------- Run | Yrd Mat Sub Rec Matter Collected 1048 | 230 160 658 . Remotely . | . . . . Salvage Created 731 | 28 279 424 . Parts 68 | 3 32 33 . Haulers Intercepted 2 | . 2 . . Recyclers Shooed 1 | 1 . . . Parts Field Recycled . | . . . . Retrieved Matter . | . . . . Parts Self-Destructed 19 | . . 19 . Prevented . | . . . . Kills | -11 -10 -10 -9 ------- Run | Yrd Mat Sub Rec Combat Hostiles Destroyed 21 | . 7 14 . Guns 10 | . 2 8 . Cannons 1 | . . 1 . AOE 10 | . 5 5 . Classes Destroyed 10 | 1 6 3 . Builder 1 | . 1 . . Tunneler 2 | 1 1 . . Hauler 2 | . 2 . . Operator 1 | . 1 . . Turret 2 | . . 2 . Watcher 2 | . 2 . . Swarmer 6 | . 3 3 . Grunt 4 | . 4 . . Cobbler 1 | . . 1 . Subdweller 11 | . . 11 . Best Kill Streak 4 | 1 4 4 . Combat Bots Only 4 | . 3 4 . Max Kills in Single Turn 2 | 1 2 1 . Gunslinging . | . . . . Exploded 2 | . 2 1 . Melee . | . . . . Uniques/NPCs Destroyed . | . . . . Combat | -11 -10 -10 -9 -------- Run | Yrd Mat Sub Rec Hostile Shots Fired 70 | . 20 46 4 Missed 19 | . 8 11 . Damage Taken 1136 | . 107 968 61 Core 257 | . 24 186 47 Absorbed by Shields . | . . . . Core Remaining (%) 100 | 100 . . . Volleys Fired 126 | 3 45 76 2 Largest 2 | 2 2 2 2 Hottest 100 | 70 100 100 60 Shots Fired 215 | 6 70 135 4 Gun 136 | 6 55 71 4 Cannon 48 | . . 48 . Launcher 17 | . 6 11 . Special 14 | . 9 5 . Kinetic 147 | 3 23 117 4 Thermal 51 | 3 41 7 . Explosive 17 | . 6 11 . Electromagnetic . | . . . . Robot Hit Streak 17 | 2 4 17 8 Robot Miss Streak 4 | 1 4 3 . Penetration Max . | . . . . Secondary Targets . | . . . . Shots Hit Robots 108 | 3 33 68 4 Core Hits 57 | 3 27 26 1 Critical Kills . | . . . . Critical Parts Destroyed . | . . . . Critical Strikes 3 | . 2 1 . Burn 2 | . 2 . . Destroy 1 | . . 1 . Melee Attacks . | . . . . Impact . | . . . . Slashing . | . . . . Piercing . | . . . . Sneak Attacks . | . . . . Combat Hostiles . | . . . . Follow-up Attacks . | . . . . Damage Inflicted 2448 | 28 674 1662 84 Guns 1171 | 28 337 722 84 Cannons 308 | . . 308 . Explosions 969 | . 337 632 . Melee . | . . . . Ramming . | . . . . Kinetic 1229 | 15 124 1006 84 Thermal 250 | 13 213 24 . Explosive 969 | . 337 632 . Electromagnetic . | . . . . Impact . | . . . . Slashing . | . . . . Piercing . | . . . . Highest Corruption . | . . . . Average Corruption . | . . . . Corruption Purged . | . . . . Corruption Blocked . | . . . . Overload Shots . | . . . . Overflow Damage 22 | . . 22 . Projectiles 20 | . . 20 . Explosions 2 | . . 2 . Melee . | . . . . Knockbacks . | . . . . Impact . | . . . . Kinetic . | . . . . Secondary . | . . . . Self-Inflicted Damage 259 | . . 259 . Shots 8 | . . 8 . Rammed . | . . . . Targets Rammed . | . . . . Kicked . | . . . . Crushed . | . . . . Highest Temperature 129 | 40 129 . 9 Average Temperature 34 | 19 36 . 9 Received Heat Transfer 156 | . 24 114 18 Siege Activations . | . . . . Robots Corrupted . | . . . . Combat Hostiles . | . . . . Parts Fried . | . . . . Impact Corruptions . | . . . . Robots Melted . | . . . . Combat Hostiles . | . . . . Parts Melted . | . . . . Heat Transferred 888 | 37 777 74 . Parts Sabotaged . | . . . . Parts Stolen . | . . . . Parts Stripped . | . . . . Power Chain Reactions . | . . . . Alert | -11 -10 -10 -9 ------- Run | Yrd Mat Sub Rec Peak Influence 244 | 5 244 . 116 Initial 86 | . 3 . 86 Average 95 | 2 100 . 104 Maximum Alert Level 1 | . 1 . . Low Security (%) 75 | 100 71 . 100 Level 1 24 | . 28 . . Level 2 . | . . . . Level 3 . | . . . . Level 4 . | . . . . Level 5 . | . . . . High Security . | . . . . Max Security . | . . . . Squads Dispatched 2 | . 2 . . Investigation 1 | . 1 . . Extermination . | . . . . Reinforcement 1 | . 1 . . Assault . | . . . . Garrison . | . . . . Intercept . | . . . . Searches Triggered . | . . . . Construction Impeded . | . . . . Haulers Reinforced . | . . . . Active Scanning Responses . | . . . . Cargo Convoy Interrupts . | . . . . Stealth | -11 -10 -10 -9 --------- Run | Yrd Mat Sub Rec Distress Signals 1 | . 1 . . Communications Jammed . | . . . . Distress Signals . | . . . . Times Spotted 36 | . 15 20 1 Peak Tracking Total 5 | . 5 5 1 Tactical Retreats 3 | . . 3 . Traps | -11 -10 -10 -9 ------- Run | Yrd Mat Sub Rec Traps Triggered 1 | . 1 . . Indirectly . | . . . . Trap Hack Attempts . | . . . . Triggered . | . . . . Disarmed . | . . . . Reprogrammed . | . . . . Reused . | . . . . Traps Extracted . | . . . . Installed . | . . . . Triggered . | . . . . Machines | -11 -10 -10 -9 ---------- Run | Yrd Mat Sub Rec Machines Disabled . | . . . . Max in Single Turn . | . . . . Machines Repaired . | . . . . Machines Dismantled . | . . . . Machines Sabotaged . | . . . . Overloaded Fab Kills . | . . . . Hacking | -11 -10 -10 -9 --------- Run | Yrd Mat Sub Rec Machines Accessed 8 | . 6 1 1 Terminals 5 | . 5 . . Fabricators . | . . . . Repair Stations . | . . . . Recycling Units 2 | . 1 . 1 Scanalyzers . | . . . . Garrison Access . | . . . . Total Hacks 26 | . 23 2 1 Successful 14 | . 11 2 1 Failed 12 | . 12 . . Catastrophic 1 | . 1 . . Database Lockouts . | . . . . Manual 10 | . 9 . 1 Terminals 19 | . 19 . . Fabricators . | . . . . Repair Stations . | . . . . Recycling Units 5 | . 4 . 1 Scanalyzers . | . . . . Garrison Access . | . . . . Terminal Hacks 10 | . 8 2 . Record 2 | . . 2 . Robot Analysis 1 | . 1 . . Prototype ID Bank 4 | . 4 . . Locate Traps 1 | . 1 . . Zone Layout 2 | . 2 . . Fabricator Hacks . | . . . . Repair Station Hacks . | . . . . Recycling Unit Hacks 1 | . 1 . . Retrieve Components 1 | . 1 . . Scanalyzer . | . . . . Garrison Access Hacks . | . . . . Unauthorized Hacks 3 | . 2 . 1 Terminals . | . . . . Fabricators . | . . . . Repair Stations . | . . . . Recycling Units 3 | . 2 . 1 Monitor 1 | . 1 . . Mask 1 | . 1 . . Tunnel 1 | . . . 1 Scanalyzers . | . . . . Garrison Access . | . . . . Data Cores Recovered . | . . . . Used . | . . . . Hacking Detections 4 | . 4 . . Full Trace Events . | . . . . Feedback Events . | . . . . Feedback Blocked . | . . . . Robot Schematics Acquired . | . . . . Robots Built . | . . . . Authchips . | . . . . Time . | . . . . Total Robot Build Rating . | . . . . Part Schematics Acquired . | . . . . Parts Built . | . . . . Authchips . | . . . . Time . | . . . . Total Part Build Rating . | . . . . Parts Repaired . | . . . . Time . | . . . . Parts Recycled . | . . . . Recycled Matter . | . . . . Retrieved Matter . | . . . . Retrieved Components 3 | . 3 . . Parts Scanalyzed . | . . . . Part Schematics Acquired . | . . . . Parts Damaged . | . . . . Bothacking | -11 -10 -10 -9 ------------ Run | Yrd Mat Sub Rec Used RIF Installer . | . . . . Robots Hacked . | . . . . Non-combat . | . . . . Combat . | . . . . Robot Hacks Applied . | . . . . Relay Couplers Released . | . . . . Fabnet Peak Effective % . | . . . . Robots Rewired . | . . . . Allies Hacked . | . . . . Hacks Repelled . | . . . . Allies | -11 -10 -10 -9 -------- Run | Yrd Mat Sub Rec Total Allies . | . . . . Largest Group . | . . . . Highest-Rated Group . | . . . . Highest-Rated Ally . | . . . . Total Orders . | . . . . Ally Attacks . | . . . . Total Damage . | . . . . Kills . | . . . . Allies Corrupted . | . . . . Allies Melted . | . . . . Intel | -11 -10 -10 -9 ------- Run | Yrd Mat Sub Rec Robot Analysis Total 1 | . 1 . . Derelict Logs Recovered 1 | . . 1 . Drone Launches . | . . . . Drone Recoveries . | . . . . Exploration | -11 -10 -10 -9 ------------- Run | Yrd Mat Sub Rec Turns Passed 3594 | 65 956 2493 80 Spaces Moved 1807 | 43 447 1271 46 Core 52 | 19 . 33 . Treads 760 | . . 714 46 Legs 995 | 24 447 524 . Wheels . | . . . . Hover . | . . . . Flight . | . . . . Fastest Speed 50 | 50 120 120 160 Average Speed 159 | 98 125 173 160 Slowest Speed 260 | 120 190 260 160 Overloaded Moves . | . . . . Propulsion Burnouts . | . . . . Robots Hopped . | . . . . Cave-ins Triggered . | . . . . Exploration Rate (%) 37 | 3 71 66 11 Regions Visited 3 Branch Regions 2 Pre-discovered Areas 3 | . . 2 1 Known Exits Taken . | . . . . Unknown Exits Taken 3 | 1 1 1 . Scrap Searched 3 | . . 3 . Spaces Dug 6 | . 1 5 . Terrain Destroyed 109 | . 34 75 . Melee . | . . . . Projectile 9 | . 2 7 . AOE 100 | . 32 68 . Terrain Rammed . | . . . . Walls Destroyed . | . . . . Machines Disabled . | . . . . Actions | -11 -10 -10 -9 --------- Run | Yrd Mat Sub Rec Total 2281 | 59 756 1415 51 Wait 263 | . 237 26 . Move 1804 | 42 446 1270 46 Hop . | . . . . Pick Up 34 | 8 13 12 1 Fast Attach 5 | 2 . 3 . Attach 12 | 4 1 7 . Detach . | . . . . Swap 20 | . 8 12 . Drop 17 | . 6 9 2 Fire 126 | 3 45 76 2 Melee . | . . . . Ram . | . . . . Kick . | . . . . Crush . | . . . . Escape Stasis . | . . . . Rewire . | . . . . Trap . | . . . . Miscellaneous . | . . . . Route ------- -11/Scrapyard -10/Materials (discovered 3 exits: [*Mat x2] / *Sub) -10/Subcaves (discovered 2 exits: [*Mat] / *Rec) -9/Recycling History --------- Turn | Location | Event 16 | -11/Scrapyard | Discovered new exit (range 15) 66 | -11/Scrapyard | Entered Materials 316 | -10/Materials | Build established: Mutant 415 | -10/Materials | Discovered new exit (range 12) 589 | -10/Materials | Discovered new exit (range 13) 914 | -10/Materials | Discovered new exit (range 8) 1022 | -10/Materials | Entered Subcaves 1027 | -10/Subcaves | Learned location of Zion (-6) 1105 | -10/Subcaves | A Subdweller sparked back to life 1105 | -10/Subcaves | A Subdweller sparked back to life 1105 | -10/Subcaves | A Subdweller sparked back to life 1116 | -10/Subcaves | Found Prototype Processor 1116 | -10/Subcaves | Identified Rainbow Chip 1117 | -10/Subcaves | Attached Rainbow Chip, gained temporary slots: Power, Propulsion, Utility, Weapon 1117 | -10/Subcaves | Ambushed by Subdweller buried in earth 1123 | -10/Subcaves | Core integrity fell below 50% 1155 | -10/Subcaves | Lost 5 parts (1p2n1u1w) 1375 | -10/Subcaves | Met a Zionite searching for "candidates" 1551 | -10/Subcaves | Discovered new exit (range 15) 1554 | -10/Subcaves | Build established: Scavenger-Gunner 1562 | -10/Subcaves | Shifting Twisted Machinery released Battle Cannon 1589 | -10/Subcaves | Shifting Twisted Machinery released Battle Cannon 1769 | -10/Subcaves | A swath of the cavern ceiling suddenly collapsed 2056 | -10/Subcaves | Visited Clippyterm 2139 | -10/Subcaves | Shifting Twisted Machinery released Sub. Laser 2142 | -10/Subcaves | Shifting Twisted Machinery released Spk. Treads 2189 | -10/Subcaves | Disturbed a concealed Subdweller 2329 | -10/Subcaves | Ambushed by Subdweller buried in earth 2331 | -10/Subcaves | Core integrity fell below 20% 2429 | -10/Subcaves | Discovered new exit (range 19) 2653 | -10/Subcaves | Shifting Twisted Machinery released Sub. Beam Cannon 2676 | -10/Subcaves | Build established: Derelict-Mutant 2764 | -10/Subcaves | Shifting Twisted Machinery released Sub. Machine Gun 3027 | -10/Subcaves | A swath of the cavern ceiling suddenly collapsed 3318 | -10/Subcaves | Build established: Scavenger-Mutant 3515 | -10/Subcaves | Entered Recycling 3595 | -9/Recycling | Destroyed by Y-45 Defender with Heavy Assault Rifle Last Messages --------------- 03083_ Sub. Optics shoots sparks and powers down. 03104_ IU-PCP(R) destroyed. 03107_ Acquired 39 matter. 03123_ Subatomizers dissect the Sub. Optics. 03126_ Dropped Lrg. Storage Unit. 03127_ Acquired Sub. Optics. 03491_ Subatomizers dissect the Sub. Power Source. A mysterious object appears at your location! LOCATION=UNKNOWN GOAL=ESCAPE 03547_ Connecting with Recycling Unit... 03547_ Current location identified: Recycling >>Force(Tunnel) DISCOVERED[-8/Materials] 03575_ Dropped Scrap Shield. 03575_ Acquired Scrap Shield. 03578_ Dropped Scrap Shield. 03592_ Y-45 Defender springs to life. Map ----- +----------------------------------------------------+ | ???????????? Y"#?? | | ???????????? ""#?? | | ?????????????######+##### ###?? | | ????????????????????????# #???? | | ????????????????????????# #???? | | ????????????????????????# #???? | | ????????????????????????# ###?? | | ????????????????????????# !!#?? | | ????????????????????????# !!#?? | | ????????????????????????# !!#?? | | ????????????????????????# ###?? | | ????????????????????????# #???? | | ????????????????????????# #???? | | ????????????????????????# #???? | | ???????????????########## #???? | | ???????????????# ! # #???? | | ???????????????# ! ! # #???? | | ???????????????#! ! !!+ #???? | | ???????????????#! ! # #???? | | ???????????????# ! # #???? | | ???????????????# ! !# #???? | | ???????????????# ! # #???? | | ???????????????# # #???? | | ???????????????# # #???? | | ???????????????########## #???? | | ????????????????????????#@ #???? | | ???????????????????????#Y #???? | | ???????????????????????## #???? | | ????????????????????????# #???? | | ????????????????????????# "???? | | ????????????????????????# Y"??? | | ????????????????????????# ""#?? | | ????????????????????????# ###?? | | ????????????????????????# #???? | | ????????????????????????? #???? | | ????????????????????????? #???? | | ????????????????????????? #???? | | ????????????????????????? "???? | | ????????????????????????? Y???? | | ????????????????????????? "???? | | ????????????????????????? ????? | | ????????????????????????????????? | | ????????????????????????????????? | | ????????????????????????????????? | | ????????????????????????????????? | | ????????????????????????????????? | | ????????????????????????????????? | | ????????????????????????????????? | | ????????????????????????????????? | | ????????????????????????????????? | +----------------------------------------------------+ Best States ------------- Heat Dissipation 25 Energy Generation 10 Energy Capacity 250 Matter Stores 300 Matter Capacity 300 Sight Range 21 Terrain Scan Range 16 Terrain Scan Density 10 Evasion (%) 55 Recoil Reduction 2 Item Schematics ----------------- None Robot Schematics ------------------ None Fabricated ------------ Nothing Alien Tech Used ----------------- None Achievements -------------- None Challenges ------------ None Game ------ Seed RelayAerolevAutohacker Manual? 0 Play Time 00:23:54 Cumulative 161.0 hours Start 2024.04.30 @ 18:38:57 End 2024.04.30 @ 19:04:31 Sessions 1 Manual Loads 0 Difficulty Rogue Special Mode None Game No. 58 Rogue 44 Adventurer 14 Explorer 0 Win Type - Total 11 Types 9/0/0/1/0/0/0/0/1 Lore% 61 Gallery% 74 Achievement% 62 Wizard Run 0 Options --------- Layout 2 ASCII 0 Keyboard 0 Movement Mouse Keybinds 0 Fullscreen 1 Font 20/SmallcapsGlow Map View 50x44 Zoom Use 0% Tactical HUD 1 Map Filters NONE Filters NONE Steam 1 RUN: 42f2042a-ff3d-40e4-8a01-0db8c2af4292